[Event "Asian Amateur-ch Open 2022"]
[Site "Muscat"]
[Date "2022.10.02"]
[Round "1.30"]
[White "Al Bulushi, Omar"]
[Black "Ranjith, R.k."]
[Result "0-1"]
[ECO "B45"]
[WhiteElo "1095"]
[BlackElo "1706"]
[Annotator "NA RC COMBH"]
[PlyCount "56"]
[EventDate "2022.09.29"]
[EventType "swiss"]
[SourceTitle "playchess.com"]
[Source "ChessBase"]
[SourceQuality "1"]
[TimeControl "5400+30"]

1. e4 {[%emt 0:00:36]} c5 {[%emt 0:00:11]} 2. d4 {[%emt 0:00:08]} e6 {[%emt 0:01:04]} 3. Nf3 {[%emt 0:01:41]} cxd4 {[%emt 0:00:08]} 4. Nxd4 {[%emt 0:00:41]} Nf6 {[%emt 0:00:04]} 5. Nc3 {[%emt 0:00:12]} Nc6 {[%emt 0:00:02]} 6. Bg5 {[%emt 0:01:26]} Bb4 {[%emt 0:04:02]} 7. Nxc6 {[%emt 0:02:25]} bxc6 {[%emt 0:00:42]} 8. e5 {[%emt 0:00:08]} Qa5 {[%emt 0:00:08]} 9. Qd4 {[%emt 0:05:49]} Nd5 {[%emt 0:10:03]} 10. Bd2 {[%emt 0:02:45]} Nxc3 {[%emt 0:06:36]} 11. Bxc3 {[%emt 0:01:29]} Bxc3+ {[%emt 0:01:49]} 12. Qxc3 {[%emt 0:00:18]} Qb6 {[%emt 0:07:41]} 13. Bd3 {[%emt 0:02:41]} Rb8 {[%emt 0:04:00]} 14. Rb1 {[%emt 0:02:46]} O-O {[%emt 0:00:47]} 15. O-O {[%emt 0:00:14]} f6 {[%emt 0:01:57]} 16. b3 {[%emt 0:00:30]} a5 {[%emt 0:04:16]} 17. Rfe1 {[%emt 0:04:30]} fxe5 {[%emt 0:00:28]} 18. Re3 {[%emt 0:02:05]} d6 {[%emt 0:10:30]} 19. Be4 {[%emt 0:03:29]} d5 {[%emt 0:00:33]} 20. Bxh7+ {[%emt 0:03:28]} Kxh7 {[%emt 0:00:05]} 21. Qxe5 {[%emt 0:00:03]} Rf6 {[%emt 0:04:58]} 22. Rf1 {[%emt 0:01:25]} Ba6 {[%emt 0:00:25]} 23. Rd1 {[%emt 0:02:38]} Rbf8 {[%emt 0:00:16]} 24. c4 {[%emt 0:02:08]} Rxf2 {[%emt 0:05:50]} 25. Rh3+ {[%emt 0:02:07]} Kg8 {[%emt 0:00:22]} 26. Qxe6+ {[%emt 0:01:02]} R2f7+ {[%emt 0:00:09]} 27. Re3 {[%emt 0:00:42]} dxc4 {[%emt 0:02:49]} 28. bxc4 {[%emt 0:03:04]} Bxc4 {[%emt 0:00:10]} 0-1

[Event "Asian Amateur-ch Open 2022"]
[Site "Muscat"]
[Date "2022.10.02"]
[Round "1.31"]
[White "Velavaa Ragavesh"]
[Black "Humaid Abdulla, Alzahmi"]
[Result "1-0"]
[ECO "C45"]
[WhiteElo "1698"]
[BlackElo "1074"]
[Annotator "NA RC COMBH"]
[PlyCount "65"]
[EventDate "2022.09.29"]
[EventType "swiss"]
[SourceTitle "playchess.com"]
[Source "ChessBase"]
[SourceQuality "1"]
[TimeControl "5400+30"]

1. e4 {[%emt 0:00:13]} e5 {[%emt 0:00:11]} 2. Nf3 {[%emt 0:00:16]} Nc6 {[%emt 0:00:50]} 3. d4 {[%emt 0:00:45]} exd4 {[%emt 0:00:24]} 4. Nxd4 {[%emt 0:00:45]} Bc5 {[%emt 0:00:46]} 5. Be3 {[%emt 0:00:17]} Qf6 {[%emt 0:00:58]} 6. c3 {[%emt 0:00:22]} Nge7 {[%emt 0:02:03]} 7. Bc4 {[%emt 0:00:49]} O-O {[%emt 0:04:23]} 8. O-O {[%emt 0:00:21]} b6 {[%emt 0:03:02]} 9. f4 {[%emt 0:01:51]} Bb7 {[%emt 0:01:41]} 10. Be2 {[%emt 0:02:18]} Rfe8 {[%emt 0:03:12]} 11. Bf3 {[%emt 0:07:30]} d6 {[%emt 0:06:20]} 12. Kh1 {[%emt 0:06:35]} Rad8 {[%emt 0:01:45]} 13. Qd2 {[%emt 0:04:20]} h6 {[%emt 0:02:36]} 14. b4 {[%emt 0:03:06]} Bxd4 {[%emt 0:00:42]} 15. cxd4 {[%emt 0:00:58]} a6 {[%emt 0:03:12]} 16. a3 {[%emt 0:01:56]} b5 {[%emt 0:03:30]} 17. Nc3 {[%emt 0:01:25]} Na7 {[%emt 0:03:10]} 18. e5 {[%emt 0:02:55]} dxe5 {[%emt 0:02:27]} 19. fxe5 {[%emt 0:00:13]} Qb6 {[%emt 0:04:39]} 20. d5 {[%emt 0:01:30]} c5 {[%emt 0:01:30]} 21. Bxc5 {[%emt 0:00:54]} Qc7 {[%emt 0:02:54]} 22. Bxa7 {[%emt 0:01:03]} Bxd5 {[%emt 0:00:51]} 23. Nxd5 {[%emt 0:01:35]} Nxd5 {[%emt 0:00:23]} 24. Bxd5 {[%emt 0:00:29]} Rxe5 {[%emt 0:00:41]} 25. Bxf7+ {[%emt 0:00:23]} Kh8 {[%emt 0:02:33]} 26. Qf2 {[%emt 0:00:48]} Rf8 {[%emt 0:00:47]} 27. Bc5 {[%emt 0:00:18]} Rh5 {[%emt 0:01:03]} 28. h3 {[%emt 0:02:47]} Rxf7 {[%emt 0:04:44]} 29. Qxf7 {[%emt 0:00:07]} Qe5 {[%emt 0:00:50]} 30. Rae1 {[%emt 0:00:06]} Qg5 {[%emt 0:00:46]} 31. Re8+ {[%emt 0:00:03]} Kh7 {[%emt 0:00:31]} 32. Qg8+ {[%emt 0:00:01]} Kg6 {[%emt 0:00:12]} 33. Re6+ {[%emt 0:00:02]} 1-0

[Event "Asian Amateur-ch Open 2022"]
[Site "Muscat"]
[Date "2022.10.02"]
[Round "1.32"]
[White "Al Yahmedi, Abdul Rahman"]
[Black "Al Amri, Mohammed A"]
[Result "0-1"]
[ECO "A01"]
[WhiteElo "1073"]
[BlackElo "1693"]
[Annotator "NA RC COMBH"]
[PlyCount "66"]
[EventDate "2022.09.29"]
[EventType "swiss"]
[SourceTitle "playchess.com"]
[Source "ChessBase"]
[SourceQuality "1"]
[TimeControl "5400+30"]

1. b3 {[%emt 0:00:02]} Nf6 {[%emt 0:00:02]} 2. Bb2 {[%emt 0:00:11]} e6 {[%emt 0:00:04]} 3. e3 {[%emt 0:00:10]} b6 {[%emt 0:00:02]} 4. Nf3 {[%emt 0:00:12]} Bb7 {[%emt 0:00:00]} 5. c4 {[%emt 0:00:24]} Be7 {[%emt 0:00:53]} 6. d4 {[%emt 0:00:16]} d5 {[%emt 0:00:09]} 7. Qc2 {[%emt 0:00:28]} Nbd7 {[%emt 0:00:06]} 8. Nbd2 {[%emt 0:01:34]} h6 {[%emt 0:00:24]} 9. Bd3 {[%emt 0:01:01]} Rc8 {[%emt 0:00:32]} 10. Rg1 {[%emt 0:02:41]} c5 {[%emt 0:01:49]} 11. O-O-O {[%emt 0:04:19]} dxc4 {[%emt 0:00:20]} 12. bxc4 {[%emt 1:25:12]} b5 {[%emt 0:00:09]} 13. Kb1 {[%emt 0:00:00]} cxd4 {[%emt 0:00:15]} 14. exd4 {[%emt 0:00:00]} bxc4 {[%emt 0:00:06]} 15. Bxc4 {[%emt 0:00:00]} Nd5 {[%emt 0:01:04]} 16. Qd3 {[%emt 0:00:00]} Qb6 {[%emt 0:01:22]} 17. Bb5 {[%emt 0:00:00]} Rc3 {[%emt 0:04:24]} 18. Bxc3 {[%emt 0:00:00]} Qxb5+ {[%emt 0:00:14]} 19. Nb3 {[%emt 0:00:00]} Ba6 {[%emt 0:04:01]} 20. Qxb5 {[%emt 0:00:00]} Nxc3+ {[%emt 1:24:34]} 21. Kb2 {[%emt 0:00:00]} Nxb5 {[%emt 0:00:00]} 22. a4 {[%emt 0:00:00]} Nd6 {[%emt 0:00:00]} 23. Nfd2 {[%emt 0:00:00]} O-O {[%emt 0:00:00]} 24. f4 {[%emt 0:00:00]} Rb8 {[%emt 0:00:00]} 25. Rc1 {[%emt 0:00:00]} Nb6 {[%emt 0:00:00]} 26. Ka2 {[%emt 0:00:00]} Nbc4 {[%emt 0:00:00]} 27. Rc2 {[%emt 0:00:00]} Rb4 {[%emt 0:00:00]} 28. Nc5 {[%emt 0:00:00]} Nxd2 {[%emt 0:00:00]} 29. Rxd2 {[%emt 0:00:00]} Bc4+ {[%emt 0:00:00]} 30. Ka1 {[%emt 0:00:00]} Bd5 {[%emt 0:00:00]} 31. Rb1 {[%emt 0:00:00]} Rc4 {[%emt 0:00:00]} 32. g4 {[%emt 0:00:00]} Bf6 {[%emt 0:00:00]} 33. Rbd1 {[%emt 0:00:00]} Bf3 {[%emt 0:00:00]} 0-1

[Event "Asian Amateur-ch Open 2022"]
[Site "Muscat"]
[Date "2022.10.02"]
[Round "2.1"]
[White "Madhusoodanan, K.R."]
[Black "Muhammad Shahzeb"]
[Result "1-0"]
[ECO "E18"]
[WhiteElo "1663"]
[BlackElo "1992"]
[Annotator "TA"]
[PlyCount "97"]
[EventDate "2022.09.29"]
[EventType "swiss"]
[SourceTitle "playchess.com"]
[Source "ChessBase"]
[SourceQuality "1"]
[TimeControl "5400+30"]

{[%evp 17,97,-5,-2,-27,-7,-33,36,32,40,26,35,40,68,71,95,89,89,87,88,99,98,112,146,117,108,103,105,103,199,214,176,114,119,119,124,68,74,68,73,21,23,23,29,22,24,11,18,19,81,75,137,137,147,95,93,65,81,63,171,164,147,44,114,118,735,752,746,750,710,687,572,483,510,507,5302,5243,4878,4535,29980,29981,29981,29982]} 1. Nf3 {[%emt 0:00:04]} Nf6 {[%emt 0:00:31]} 2. c4 {[%emt 0:00:48]} e6 {[%emt 0:00:11]} 3. g3 {[%emt 0:02:15]} b6 {[%emt 0:00:14]} 4. Bg2 {[%emt 0:01:37]} Bb7 {[%emt 0:00:02]} 5. O-O {[%emt 0:00:51]} Be7 {[%emt 0:00:43]} 6. Nc3 {[%emt 0:00:41]} O-O {[%emt 0:00:05]} 7. d4 {[%emt 0:01:26][%cal Bd2d4,Bd4d5][%mdl 32]} Ne4 {[%emt 0:00:05]} 8. d5 {[%emt 0:01:38]} Nxc3 {[%emt 0:00:02]} 9. bxc3 {[%emt 0:00:02]} d6 {[%emt 0:10:37]} 10. Re1 {[%emt 0:05:07] E18: Queen's Indian: Old Main Line (4 g3 Bb7 5 Bg2 Be7 6 0-0 0-0 7 Nc3).} e5 {[%emt 0:04:29]} 11. Rb1 {[%emt 0:04:59][%cal Oc4c5] [#]} (11. c5 $5) 11... Bc8 $146 {[%emt 0:00:18] [#]} (11... Na6 $15) ({Predecessor:} 11... Nd7 12. e4 Re8 13. h4 h6 14. Be3 Rb8 15. Nh2 Bf8 16. Ng4 Nf6 17. Nxf6+ Qxf6 {½-½ (41) Widera,H-Zoeller,B Germany 1989}) 12. Nxe5 $1 $14 {[%emt 0:04:27] White is slightly better.} Bf6 {[%emt 0:15:28]} (12... dxe5 13. d6) 13. Nd3 {[%emt 0:05:21]} Bxc3 {[%emt 0:00:58]} 14. Bd2 {[%emt 0:02:24][%cal Bc1d2,Bd2c3,Bc3a1][%mdl 32]} Bd4 {[%emt 0:06:55]} 15. e3 {[%emt 0:03:52]} Bc5 {[%emt 0:00:20]} 16. Bc3 {[%emt 0:00:27]} Nd7 {[%emt 0:03:05]} 17. e4 {[%emt 0:02:48]} ({Much less strong is} 17. Qg4 Ne5 18. Qd1 Bg4 $14) 17... f6 {[%emt 0:02:47]} 18. Nxc5 {[%emt 0:07:58]} bxc5 {[%emt 0:02:59]} 19. f4 {[%emt 0:00:26] Inhibits Ne5.} Ba6 {[%emt 0:01:16]} 20. Qa4 {[%emt 0:07:01]} Bc8 {[%emt 0:05:25]} 21. Ba1 {[%emt 0:10:12] White has more active pieces. The black rooks are badly placed.} Nb6 {[%emt 0:01:57]} 22. Qc2 {[%emt 0:00:14]} Bd7 {[%emt 0:00:53] [#]} (22... Qe8 $16) 23. e5 $1 $18 {[%emt 0:00:48]} fxe5 {[%emt 0:00:03]} 24. fxe5 {[%emt 0:00:16]} (24. Be4 $18) 24... Bf5 $16 {[%emt 0:03:56]} 25. Be4 {[%emt 0:01:23]} Bxe4 {[%emt 0:01:29]} 26. Qxe4 {[%emt 0:01:33]} (26. Rxe4 $16 {aiming for Rh4.} dxe5 27. Rxe5 (27. Bxe5 Qd7 $16)) 26... dxe5 $1 $14 {[%emt 0:00:39]} 27. Qxe5 {[%emt 0:01:18][%csl Ga1][%cal Re5g7]} Qd7 {[%emt 0:01:29] [#]} 28. Qe7 {[%emt 0:06:05]} (28. Qe6+ $1 $16 Rf7 29. Re4) 28... Qxe7 $1 $11 {[%emt 0:01:22]} 29. Rxe7 {[%emt 0:00:11]} Rf7 {[%emt 0:00:02]} 30. Re4 {[%emt 0:02:51]} Raf8 {[%emt 0:01:36]} 31. Rbe1 {[%emt 0:00:36]} h6 {[%emt 0:00:19]} 32. Be5 {[%emt 0:00:58]} Rd8 {[%emt 0:02:42]} (32... Nc8 $11) 33. Bf4 $16 {[%emt 0:01:23]} g5 {[%emt 0:01:02]} ({Black should play} 33... Rc8) 34. Be3 {[%emt 0:01:58]} Na4 {[%emt 0:01:16]} 35. Re6 {[%emt 0:02:01]} (35. h4 $142) 35... Rd6 {[%emt 0:00:37]} 36. Bf2 {[%emt 0:02:07]} Kh7 {[%emt 0:03:42]} 37. g4 {[%emt 0:01:36]} Rf4 {[%emt 0:01:34]} (37... Rxe6 $14 38. dxe6 Re7) 38. Re7+ $18 {[%emt 0:01:10]} Kg6 {[%emt 0:00:19]} 39. Rxc7 {[%emt 0:00:28]} (39. h3 $16 {Hoping for Bg3.} Rdf6 40. Bg3) 39... Rxc4 {[%emt 0:01:04]} (39... Rxg4+ $14 40. Bg3 Kh5) 40. h3 $16 {[%emt 0:00:19] Black must now prevent Bg3.} Kf6 $2 {[%emt 0:09:30][%mdl 8192] This move loses the game for Black.} (40... Nb6 $16) 41. Rc6 $18 {[%emt 0:06:29]} Rxc6 {[%emt 0:04:05]} 42. dxc6 {[%emt 0:00:10][%mdl 4096] Endgame KRB-KRN} Kf7 {[%emt 0:03:00]} 43. c7 {[%emt 0:00:18]} Nb6 {[%emt 0:00:12]} 44. Rd1 {[%emt 0:00:18]} Re4 {[%emt 0:00:48]} 45. Rd8 {[%emt 0:01:21]} Re8 {[%emt 0:00:52]} (45... Re7 $142 46. c8=Q (46. Bxc5 Rxc7 47. Rf8+ Ke6 $11) 46... Nxc8 47. Rxc8 Re2 48. Rxc5 a6 49. Rf5+ Ke8) 46. Bxc5 {[%emt 0:00:09]} Nc8 {[%emt 0:00:53]} 47. Kf2 {[%emt 0:00:22]} Re5 {[%emt 0:01:50]} 48. Rxc8 {[%emt 0:01:30]} Rxc5 {[%emt 0:00:07]} 49. Rh8 {[%emt 0:00:03] Weighted Error Value: White=0.20 (precise) /Black=0.42} 1-0

[Event "Asian Amateur-ch Open 2022"]
[Site "Muscat"]
[Date "2022.10.02"]
[Round "2.2"]
[White "Zholdoshmamatov, Adilet"]
[Black "Junaid Sohail"]
[Result "0-1"]
[ECO "C47"]
[WhiteElo "1654"]
[BlackElo "1981"]
[Annotator "TA"]
[PlyCount "88"]
[EventDate "2022.09.29"]
[EventType "swiss"]
[SourceTitle "playchess.com"]
[Source "ChessBase"]
[SourceQuality "1"]
[TimeControl "5400+30"]

{[%evp 23,88,-2,10,0,5,2,12,-1,7,17,21,12,10,5,45,-14,-1,-127,-126,-128,-80,-80,-78,-85,-74,-92,-31,-33,-8,-8,-12,-18,0,-70,-62,-113,-41,-65,-17,-69,-8,-147,-141,-140,-140,-222,-181,-372,-314,-412,-363,-361,-333,-314,-299,-335,-225,-520,-514,-448,-419,-913,-889,-29997,-29998,-29998,-29999]} 1. e4 {[%emt 0:00:15]} e5 {[%emt 0:00:50]} 2. Nf3 {[%emt 0:01:31]} Nc6 {[%emt 0:00:02]} 3. Nc3 {[%emt 0:00:08]} Nf6 {[%emt 0:00:04]} 4. d4 {[%emt 0:00:22]} exd4 {[%emt 0:00:08]} 5. Nxd4 {[%emt 0:00:07]} Bb4 {[%emt 0:00:02]} 6. Nxc6 {[%emt 0:01:15]} bxc6 {[%emt 0:00:23]} 7. Bd3 {[%emt 0:00:33]} d5 {[%emt 0:00:06]} 8. exd5 {[%emt 0:00:08]} O-O {[%emt 0:00:42]} 9. O-O {[%emt 0:00:56]} cxd5 {[%emt 0:00:05]} 10. Bg5 {[%emt 0:01:02]} c6 {[%emt 0:00:23]} 11. Qf3 {[%emt 0:00:22]} Bd6 {[%emt 0:00:20] 11...h6 is a critical line.} 12. Rfe1 {[%emt 0:02:48]} h6 {[%emt 0:00:16]} 13. Bxf6 {[%emt 0:00:11] C47: Scotch Four Knights and Four Knights with 4 g3.} Qxf6 {[%emt 0:00:03]} 14. Qxf6 {[%emt 0:00:12]} gxf6 {[%emt 0:00:04]} 15. Ne2 {[%emt 0:00:39] The position is equal.} Be5 {[%emt 0:00:10]} 16. Rab1 {[%emt 0:02:44]} Rb8 {[%emt 0:02:07]} 17. b3 {[%emt 0:00:07]} Be6 {[%emt 0:04:55]} 18. Ng3 {[%emt 0:02:07] [#]} c5 $146 {[%emt 0:01:36]} ({Predecessor:} 18... Rfe8 19. Nf5 h5 20. Rbd1 c5 21. Ne3 Bc3 22. Re2 Kf8 23. Kf1 Rb4 24. Bf5 Rd4 {½-½ (54) Le Roux,J (2551)-Fressinet,L (2715) Belfort 2012}) 19. Bf5 {[%emt 0:02:11]} (19. Nf5 $14) 19... Rfe8 {[%emt 0:02:21]} 20. Rbd1 {[%emt 0:00:48]} (20. Re3 $11 {remains equal.}) 20... Bxg3 $17 {[%emt 0:00:47]} 21. Bxe6 {[%emt 0:00:54]} Bxh2+ {[%emt 0:00:35]} ({Much worse is} 21... Rxe6 $6 22. hxg3 Kg7 23. f3 $11) (21... Bxf2+ $142 $1 22. Kxf2 fxe6) 22. Kxh2 {[%emt 0:00:16]} fxe6 {[%emt 0:00:13][%mdl 4096] Endgame KRR-KRR} 23. Re3 {[%emt 0:00:36]} a5 {[%emt 0:04:42][%cal Oa5a4]} 24. Rh3 {[%emt 0:00:56]} a4 {[%emt 0:03:09]} (24... Kg7 $17) 25. Rxh6 $15 {[%emt 0:01:38]} axb3 {[%emt 0:00:02]} 26. axb3 {[%emt 0:00:09]} Kg7 {[%emt 0:02:17]} 27. Rh3 {[%emt 0:00:09]} Ra8 {[%emt 0:00:20]} 28. c4 {[%emt 0:01:51]} ({Better is} 28. f4 $11) 28... d4 {[%emt 0:00:47]} 29. b4 {[%emt 0:00:00] [#]} (29. g4 $15) 29... e5 {[%emt 0:02:00]} ({Don't play} 29... cxb4 $6 30. Rxd4 e5 31. Rd7+ Kg6 32. c5 $11) (29... Ra4 $1 $17 {[%cal Ra4b4]} 30. bxc5 Rxc4) 30. bxc5 {[%emt 0:01:50][%cal Of2f4]} Rac8 {[%emt 0:03:26]} (30... Ra4 $15 31. Rc1 Kg6) 31. Rb1 {[%emt 0:02:24]} ({White should play} 31. Rh5 $11) 31... Re7 {[%emt 0:00:33]} (31... Rxc5 $15 32. Rb7+ Kg6 33. Rg3+ Kf5 34. Rf3+ Kg6 35. Rg3+ Kf5 36. Rf3+ Kg6 37. Rg3+) 32. c6 {[%emt 0:04:23]} (32. Rg3+ $11 {keeps the balance.} Kf7 33. Rh3) 32... Rxc6 $17 {[%emt 0:00:35]} 33. Rb8 {[%emt 0:00:07][%cal Of2f4]} Rxc4 {[%emt 0:03:29]} 34. Rhh8 {[%emt 0:00:17]} (34. g4 $17) 34... Kg6 {[%emt 0:00:26] White must now prevent ...Rc2.} 35. Rhg8+ $2 {[%emt 0:11:30]} (35. g4) 35... Rg7 {[%emt 0:04:50]} 36. Rgf8 {[%emt 0:02:23]} Rc2 {[%emt 0:02:28]} 37. Kg1 {[%emt 0:08:25]} d3 {[%emt 0:05:45]} 38. Rbd8 {[%emt 0:05:14]} e4 {[%emt 0:08:10]} 39. Rd6 {[%emt 0:01:24]} Rf7 {[%emt 0:00:59]} 40. Re8 {[%emt 0:03:27] [#]} (40. Rfd8) 40... Re2 $1 $19 {[%emt 0:04:49]} 41. Rg8+ {[%emt 0:06:20]} Kf5 {[%emt 0:01:18]} 42. Rgd8 {[%emt 0:03:42]} (42. Rd5+ $142 Ke6 43. Rgd8) 42... Kf4 {[%emt 0:06:04] ( -> ...Re1+)} 43. Rd5 {[%emt 0:04:42]} Re1+ {[%emt 0:00:05]} 44. Kh2 {[%emt 0:04:57]} Rh7+ {[%emt 0:00:03] Weighted Error Value: White=0.79/Black=0.23 (precise)} 0-1

[Event "Asian Amateur-ch Open 2022"]
[Site "Muscat"]
[Date "2022.10.02"]
[Round "2.3"]
[White "Owlad, Ehsan"]
[Black "Al Amari, Mohammed"]
[Result "1-0"]
[ECO "A46"]
[WhiteElo "1962"]
[BlackElo "1646"]
[Annotator "TA"]
[PlyCount "91"]
[EventDate "2022.09.29"]
[EventType "swiss"]
[SourceTitle "playchess.com"]
[Source "ChessBase"]
[SourceQuality "1"]
[TimeControl "5400+30"]

{[%evp 9,91,22,14,0,9,6,9,-16,-20,-16,4,-20,0,-7,0,-31,4,12,27,0,0,0,11,0,65,63,298,299,297,291,299,291,291,293,343,328,322,325,345,345,493,492,566,558,550,408,408,408,408,408,408,408,407,400,658,649,675,660,669,492,492,485,483,479,708,664,841,751,811,816,832,845,988,987,993,950,29972,29973,29977,29978,29979,29980,29968,6598]} 1. d4 {[%emt 0:00:02]} Nf6 {[%emt 0:00:26]} 2. Nf3 {[%emt 0:00:17]} e6 {[%emt 0:00:59]} 3. Bg5 {[%emt 0:00:17]} c5 {[%emt 0:01:39]} 4. c3 {[%emt 0:04:15]} h6 {[%emt 0:03:37]} 5. Bxf6 {[%emt 0:01:10]} Qxf6 {[%emt 0:00:36]} 6. Nbd2 {[%emt 0:00:23] A46: 1 d4 Nf6 2 Nf3 e6: Torre, London and Colle Systems.} d5 {[%emt 0:02:50]} 7. e4 {[%emt 0:01:15]} cxd4 {[%emt 0:02:00]} 8. e5 {[%emt 0:02:53] The position is equal.} Qd8 {[%emt 0:02:42]} 9. Nxd4 {[%emt 0:00:32] [#]} Be7 $146 {[%emt 0:02:33]} ({Predecessor:} 9... Nc6 10. Nxc6 bxc6 11. Bd3 Be7 12. O-O g6 13. Qc2 Kf8 14. c4 Bd7 15. f4 h5 {1-0 (43) Gerstner,W (2398)-Pruefer,S (2250) Germany 2005}) 10. f4 {[%emt 0:00:22]} O-O {[%emt 0:01:21]} 11. Bd3 {[%emt 0:00:42]} Nc6 {[%emt 0:00:47]} 12. O-O {[%emt 0:01:51]} Bc5 {[%emt 0:05:28]} 13. N2b3 {[%emt 0:02:50]} Bxd4+ {[%emt 0:04:17]} 14. cxd4 {[%emt 0:00:32]} a5 {[%emt 0:01:50]} 15. Bc2 {[%emt 0:06:51]} Nb4 {[%emt 0:05:32]} 16. Bb1 {[%emt 0:02:53]} b6 {[%emt 0:03:11]} (16... a4 $11 17. Nc5 a3) 17. a3 $40 {[%emt 0:02:46][%mdl 128] Black needs to defend precisely.} Nc6 {[%emt 0:00:19] Black cannot hold the game after this.} (17... Na6 $1 $14) 18. Qc2 $18 {[%emt 0:00:46][%csl Gb1][%cal Rc2h7] [#]} g6 {[%emt 0:02:06]} 19. Qxc6 {[%emt 0:00:41]} Ba6 {[%emt 0:00:34]} 20. Rd1 {[%emt 0:04:11]} Rc8 {[%emt 0:06:31]} 21. Qd6 {[%emt 0:00:21]} Qh4 {[%emt 0:00:56]} 22. g3 {[%emt 0:20:49]} ({Stronger than} 22. Qxb6 Be2 23. Qxa5 (23. g3 Qh5 $11) 23... Bxd1 $11) 22... Qg4 {[%emt 0:01:28] [#]} 23. Re1 {[%emt 0:07:05]} h5 {[%emt 0:18:00]} 24. Qe7 {[%emt 0:04:03] Prevents h4.} Be2 {[%emt 0:08:44]} (24... Rc6 $142 25. Qg5 Qxg5 26. fxg5 Kg7) 25. Nd2 {[%emt 0:01:53][%cal Bb3d2,Bd2f1,Bf1g3][%mdl 32]} Rc6 {[%emt 0:02:18]} 26. Kf2 {[%emt 0:02:25]} Ba6 {[%emt 0:00:59]} 27. Qh4 {[%emt 0:00:27]} Qxh4 {[%emt 0:01:37]} 28. gxh4 {[%emt 0:00:09]} Rfc8 {[%emt 0:00:04]} 29. Ke3 {[%emt 0:01:01]} a4 {[%emt 0:00:41]} 30. Nf1 {[%emt 0:04:20]} ({Don't play} 30. Bd3 Bxd3 31. Kxd3 Rc2 $18) 30... Kf8 {[%emt 0:04:22]} 31. Ng3 {[%emt 0:00:28]} Rc1 {[%emt 0:00:49]} (31... Bc4 $142 32. Rc1 Ke8) 32. Bd3 {[%emt 0:00:29]} Rxa1 {[%emt 0:02:15]} 33. Rxa1 {[%emt 0:00:10]} Bc4 {[%emt 0:00:28]} 34. Rc1 {[%emt 0:01:23]} b5 {[%emt 0:00:06]} 35. Ne2 {[%emt 0:01:30]} Rb8 {[%emt 0:00:38]} 36. Nc3 {[%emt 0:03:14]} Ke7 {[%emt 0:00:48]} (36... b4 $142 37. Nxa4 Bxd3 38. Kxd3 bxa3 39. bxa3 Ra8) 37. Bxc4 {[%emt 0:01:34]} dxc4 {[%emt 0:00:35][%mdl 4096] Endgame KRN-KR} 38. Na2 {[%emt 0:00:33]} Rd8 {[%emt 0:02:49]} 39. Nb4 {[%emt 0:00:36] Threatens to win with Nc6+.} Kd7 {[%emt 0:00:20] Inhibits Nc6.} 40. Rd1 {[%emt 0:00:58]} Kc7 {[%emt 0:00:41]} 41. d5 {[%emt 0:00:26][%cal Od5e6] dxe6! is the strong threat.} exd5 {[%emt 0:01:14]} 42. Rxd5 {[%emt 0:00:15]} Rxd5 {[%emt 0:00:18]} 43. Nxd5+ {[%emt 0:00:12] White mates.} Kc6 {[%emt 0:00:20]} 44. Kd4 {[%emt 0:00:15]} Kd7 {[%emt 0:02:04]} 45. Kc5 {[%emt 0:00:43]} Ke6 {[%emt 0:00:06]} 46. Ne3 {[%emt 0:00:35] Weighted Error Value: White=0.19 (very precise) /Black=0.34} 1-0